Cogmind - Beta 9.3 @@@ ROGUE MODE // 2020.01.09 @ 22:33:58 // Winter2019/RPGLIKE Player: badjay Result: Destroyed by G-67 Veteran with Plasma Rifle Performance ------------- Evolutions (6) 3000 Regions Visited (14) 2800 Robots Destroyed (329) 1645 Value Destroyed (13799) 13799 Prototype IDs (59) 1180 Alien Tech Used (0) 0 Bonus (7991) 7991 TOTAL SCORE: 30415 Bonus ------- Triggered High Security 500 High Alert Combat Kills 5746 Follower Combat Kills 1158 Network Hubs Disabled 800 Built Enhanced Grunts 300 Friendly Fire -513 Cogmind --------- Core Integrity 0/600 Matter 48/300 Energy 152/350 System Corruption 4% Temperature Cool (122) Movement Flying (26) Location -4/Armory Parts ------- > --- POWER (2) -------- Cooled Ion Engine Micro Fission Core > --- PROPULSION (2) --- Cooled Cesium-ion Thruster Cooled Cesium-ion Thruster > --- UTILITY (13) ----- Advanced Coolant Injector Experimental Sensor Array Experimental Signal Interpreter Advanced Targeting Computer Improved Target Analyzer Improved Core Analyzer Advanced Armor Integrity Analyzer Energy Filter Advanced Particle Charger Reaction Control System Improved Phase Shifter System Restoration Module > --- WEAPON (4) ------- Heavy Tesla Rifle Heavy Tesla Rifle Enhanced Force Rifle Enhanced Force Rifle > --- INVENTORY (3) ---- Energy Well (275) Force Lance Peak State ------------ > --- POWER ------------ Cooled Ion Engine Micro Fission Core > --- PROPULSION ------- Cooled Cesium-ion Thruster Cooled Cesium-ion Thruster > --- UTILITY ---------- Advanced Coolant Injector Experimental Sensor Array Experimental Signal Interpreter Advanced Targeting Computer Improved Target Analyzer Improved Core Analyzer Advanced Armor Integrity Analyzer Energy Filter Advanced Particle Charger Advanced Weapon Cycler Reaction Control System Improved Phase Shifter Improved Shield Generator > --- WEAPON ----------- Hypervelocity Railgun Hypervelocity Railgun Hypervelocity Railgun Hypervelocity Railgun > --- INVENTORY -------- Energy Well System Restoration Module Heavy Pick [Rating: 131] Favorites ----------- Power Cooled Ion Engine Engine Cooled Ion Engine Power Core Micro Fission Core Reactor Quantum Reactor Propulsion Cooled Cesium-ion Thruster Flight Unit Cooled Cesium-ion Thruster Utility Experimental Sensor Array Device Experimental Sensor Array Storage Advanced Matter Compressor Processor Improved Armor Integrity Analyzer Hackware Improved System Shield Protection Improved Core Shielding Weapon Force Rifle Energy Gun Force Rifle Energy Cannon Light EM Pulse Cannon Ballistic Gun Light Assault Rifle Launcher Guided Missile Launcher Impact Weapon Shock Maul Slashing Weapon Makeshift Sword Build | -11 -10 -10 -9 -9 -7 -6 -6 -6 -6 -6 -6 -5 -4 -4 ------- Run | Scr Mat Min Mat Min Zio Pro Fac Ext Cet Arc Hub Fac Fac Arm Slots Evolved 17 | . 3 . 1 1 . 3 . 1 4 1 . 1 2 . Power 1 | . . . . . . . . . 1 . . . . . Propulsion 1 | . 1 . . . . . . . . . . . . . Utility 12 | . 1 . 1 1 . 3 . 1 2 . . 1 2 . Weapon 3 | . 1 . . . . . . . 1 1 . . . . Parts Attached 177 | . 4 5 10 1 6 3 35 9 10 5 10 11 48 20 Power 14 | . 1 . 1 . . . . . 3 1 . 2 4 2 Engine 5 | . 1 . 1 . . . . . 2 . . . . 1 Core 7 | . . . . . . . . . . 1 . 2 3 1 Reactor 2 | . . . . . . . . . 1 . . . 1 . Propulsion 12 | . 2 1 3 . . . 6 . . . . . . . Treads . | . . . . . . . . . . . . . . . Leg . | . . . . . . . . . . . . . . . Wheel . | . . . . . . . . . . . . . . . Hover . | . . . . . . . . . . . . . . . Flight 12 | . 2 1 3 . . . 6 . . . . . . . Utility 76 | . . 1 2 1 1 3 14 1 2 3 5 5 32 6 Device 52 | . . 1 . 1 . 1 7 . 2 2 2 3 28 5 Storage 1 | . . . . . . . . . . . . . 1 . Processor 16 | . . . 2 . 1 2 2 1 . . 3 2 2 1 Hackware 3 | . . . . . . . 1 . . 1 . . 1 . Protection 4 | . . . . . . . 4 . . . . . . . Artifact . | . . . . . . . . . . . . . . . Weapon 75 | . 1 3 4 . 5 . 15 8 5 1 5 4 12 12 Energy Gun 39 | . . . 1 . . . 7 3 3 1 4 3 9 8 Energy Cannon 25 | . . 2 3 . 3 . 8 5 1 . . 1 2 . Ballistic Gun 7 | . 1 1 . . . . . . 1 . . . . 4 Ballistic Cannon . | . . . . . . . . . . . . . . . Launcher 1 | . . . . . 1 . . . . . . . . . Special Weapon . | . . . . . . . . . . . . . . . Impact Weapon 2 | . . . . . . . . . . . 1 . 1 . Slashing Weapon 1 | . . . . . 1 . . . . . . . . . Piercing Weapon . | . . . . . . . . . . . . . . . Special Melee Weapon . | . . . . . . . . . . . . . . . Unidentified Prototypes 26 | . . 1 3 . 1 . 7 . 2 . 2 1 9 . Parts Lost 1 | . . . . . . . . . . . . . 1 . Power . | . . . . . . . . . . . . . . . Propulsion . | . . . . . . . . . . . . . . . Utility . | . . . . . . . . . . . . . . . Weapon 1 | . . . . . . . . . . . . . 1 . Highest Loss Streak 1 | . . . . . . . . . . . . . 1 . Average Slot Usage (%) 96 | . 32 74 97 100 99 99 98 100 83 99 98 99 99 98 Engine 7 | . 6 14 13 11 11 9 8 7 6 5 5 5 4 3 Core 2 | . . . . . . . . . . 4 5 5 4 4 Flight 14 | . 14 28 26 22 22 19 16 15 11 11 11 10 9 9 Device 23 | . . 7 13 22 14 19 27 23 19 22 23 25 31 37 Processor 25 | . . . 16 22 29 29 27 38 30 27 24 26 24 23 Hackware 1 | . . . . . . . . . . 4 5 5 3 . Energy Gun 8 | . . . . . . . 3 9 1 11 9 15 17 16 Energy Cannon 9 | . . 12 26 22 16 19 11 5 11 11 11 4 . . Naked Turns 76 | . 76 . . . . . . . . . . . . . Heaviest Build 61 | . 4 16 21 19 19 18 26 25 50 46 42 51 54 61 Greatest Support 64 | 3 8 18 26 26 26 26 39 31 46 46 46 59 64 64 Greatest Overweight (x) 1 | . . 1 . . . . 1 . 1 . . . . 1 Average Overweight (x) . | . . . . . . . . . . . . . . . Largest Inventory Capacity 3 | . . . . . . . 3 3 3 3 3 3 3 3 Average Capacity 2 | . . . . . . . 2 3 3 3 3 3 3 3 Most Carried 3 | . . . . . . . 3 3 3 3 3 3 3 3 Average Carried 1 | . . . . . . . 1 2 2 1 2 2 2 2 Final Capacity 3 | . . . . . . . 3 3 3 3 3 3 3 3 Final Carried 3 | . . . . . . . 3 3 2 2 3 3 3 2 Class Distribution -------------------- 48% | Hacker-Sprinter 23% | Hacker-Mutant 19% | Commander-Sprinter 7% | Mutant Dominant Class ---------------- Mutant | -10/Materials Mutant | -10/Mines Hacker-Mutant | -9/Materials Hacker-Mutant | -9/Mines Hacker-Mutant | -7/Zion Hacker-Mutant | -6/Proximity Caves Hacker-Sprinter | -6/Factory Commander-Sprinter | -6/Extension Commander-Sprinter | -6/Cetus Commander-Sprinter | -6/Archives Hacker-Sprinter | -6/Hub_04(d) Hacker-Sprinter | -5/Factory Hacker-Sprinter | -4/Factory Hacker-Sprinter | -4/Armory Resources | -11 -10 -10 -9 -9 -7 -6 -6 -6 -6 -6 -6 -5 -4 -4 ----------- Run | Scr Mat Min Mat Min Zio Pro Fac Ext Cet Arc Hub Fac Fac Arm Matter Collected 2059 | 200 56 86 100 10 41 49 330 132 107 47 118 135 484 164 Remotely . | . . . . . . . . . . . . . . . Salvage Created 16861 | . 93 122 1365 . . 751 1568 1648 648 536 2365 2062 5229 474 Parts 782 | . 4 9 76 . . 46 66 70 16 20 101 77 249 48 Haulers Intercepted 22 | . 1 . 5 . . . 1 2 . . 5 4 4 . Recyclers Shooed 2 | . . . . . . . . 1 . . . 1 . . Parts Field Recycled . | . . . . . . . . . . . . . . . Retrieved Matter . | . . . . . . . . . . . . . . . Parts Self-Destructed 30 | . . . . . . 30 . . . . . . . . Prevented 11 | . . . . . . 11 . . . . . . . . Kills | -11 -10 -10 -9 -9 -7 -6 -6 -6 -6 -6 -6 -5 -4 -4 ------- Run | Scr Mat Min Mat Min Zio Pro Fac Ext Cet Arc Hub Fac Fac Arm Combat Hostiles Destroyed 229 | . 2 7 21 1 . 21 20 22 7 2 26 20 65 15 Melee 1 | . . . . . . . . . . . . . . 1 Guns 116 | . 2 5 . . . . 5 18 1 1 13 12 47 12 Cannons 78 | . . 2 21 1 . 14 6 4 5 1 12 2 10 . AOE 18 | . . . . . . 7 4 . . . 1 3 2 1 Classes Destroyed 17 | . 2 1 5 1 . . 4 2 . . 1 1 . . Worker 15 | . . . 1 . . . . . . . 6 1 7 . Builder 8 | . . . . . . . 1 . . . 2 1 4 . Tunneler 1 | . . . 1 . . . . . . . . . . . Hauler 22 | . 1 . 5 . . . 1 2 . . 5 4 4 . Recycler 5 | . . . . . . . . 1 . . 2 1 1 . Operator 11 | . . . . . . . 2 . . 9 . . . . Watcher 36 | . . . 5 . . . 5 2 1 . 4 6 12 1 Swarmer 48 | . 2 3 7 . . 14 . 4 . . 3 . 10 5 Saboteur 5 | . . . . . . . . . . . . 3 1 1 Grunt 85 | . . 4 8 . . 7 6 13 5 . 13 8 21 . Brawler 8 | . . . 1 . . . . . . . 1 . 6 . Duelist 9 | . . . . . . . 1 . . . . . 4 4 Protector 3 | . . . . . . . . . . . 1 . 1 1 Sentry 35 | . . . 5 . . . 7 1 . 2 6 3 9 2 Hunter 19 | . . . . . . . 6 3 . . . 6 4 . Programmer 14 | . . . . . . . . 1 . . 2 . 9 2 Cetus Guard 2 | . . . . . . . . . 2 . . . . . Assembled 1 | . . . . 1 . . . . . . . . . . Thug 2 | . . . . . . . . . . 2 . . . . Best Kill Streak 11 | . 2 2 5 1 . 4 5 8 3 11 8 5 8 6 Combat Bots Only 8 | . 2 2 4 1 . 4 4 8 2 2 6 4 7 6 Max Kills in Single Turn 7 | . 1 1 2 1 . 2 2 2 1 3 7 5 2 2 Gunslinging 1 | . . . . . . . . . . . . . 1 1 Exploded 3 | . . . . . . 2 1 . . . 1 3 1 1 Melee 1 | . . . . . . . . . . . . . . 1 Uniques/NPCs Destroyed . | . . . . . . . . . . . . . . . Combat | -11 -10 -10 -9 -9 -7 -6 -6 -6 -6 -6 -6 -5 -4 -4 -------- Run | Scr Mat Min Mat Min Zio Pro Fac Ext Cet Arc Hub Fac Fac Arm Damage Taken 7874 | . 114 473 657 22 . 757 1098 306 214 75 1134 997 1199 828 Core 6381 | . 103 400 532 17 . 617 865 253 172 58 923 804 952 685 Absorbed by Shields 1739 | . . . . 8 . . 287 108 78 26 398 331 423 80 Redirected to Core 4939 | . 36 249 402 17 . 480 608 191 154 58 713 692 832 507 Core Remaining (%) 65 | 100 . 62 . . . 100 . . . . 31 36 . . Volleys Fired 632 | . 16 30 59 4 . 41 65 67 16 17 62 52 166 37 Largest 4 | . 1 2 2 2 . 2 2 2 3 4 4 4 4 4 Hottest 310 | . 20 126 126 112 . 112 161 160 205 285 285 310 310 302 Shots Fired 1646 | . 16 40 108 8 . 82 130 132 36 67 202 188 508 129 Gun 1107 | . 16 36 . . . . 38 115 4 33 116 143 477 129 Cannon 539 | . . 4 108 8 . 82 92 17 32 34 86 45 31 . Launcher . | . . . . . . . . . . . . . . . Special . | . . . . . . . . . . . . . . . Kinetic 88 | . 16 36 . . . . . . . . . . . 36 Thermal 706 | . . . . . . . 1 115 4 33 116 103 287 47 Explosive . | . . . . . . . . . . . . . . . Electromagnetic 852 | . . 4 108 8 . 82 129 17 32 34 86 85 221 46 Robot Hit Streak 54 | . 8 16 18 2 . 17 28 34 28 35 54 27 49 33 Robot Miss Streak 5 | . 2 2 3 2 . 5 2 3 1 1 2 1 3 5 Penetration Max . | . . . . . . . . . . . . . . . Secondary Targets 11 | . . . . . . . . 4 . . . . 5 2 Max Gunslinging Chain 1 | . . . . . . . . 1 . . . . 1 1 Shots Hit Robots 1209 | . 12 30 73 4 . 54 109 103 30 54 138 135 370 97 Core Hits 613 | . 6 11 36 2 . 31 59 48 16 28 87 58 193 38 Critical Hits 115 | . . . . . . 2 9 9 4 4 11 16 49 11 Critical Kills 43 | . . . . . . . 2 5 1 3 4 3 21 4 Critical Parts Destroyed 63 | . . . . . . 2 6 2 3 1 7 12 23 7 Melee Attacks 8 | . . . . . 5 . . . . . 1 . 2 . Impact 3 | . . . . . . . . . . . 1 . 2 . Slashing 5 | . . . . . 5 . . . . . . . . . Piercing . | . . . . . . . . . . . . . . . Sneak Attacks . | . . . . . . . . . . . . . . . Combat Hostiles . | . . . . . . . . . . . . . . . Follow-up Attacks . | . . . . . . . . . . . . . . . Damage Inflicted 35118 | . 96 362 1825 77 . 1640 3244 2546 784 1686 4805 4568 11387 2098 Guns 19738 | . 96 253 . . . . 677 2125 49 527 1737 2728 9635 1911 Cannons 10928 | . . 109 1787 77 . 1087 1829 364 735 927 2050 1014 949 . Explosions 4434 | . . . 38 . . 553 738 57 . 232 1018 808 803 187 Melee . | . . . . . . . . . . . . . . . Ramming 18 | . . . . . . . . . . . . 18 . . Kinetic 499 | . 96 253 . . . . . . . . . . . 150 Thermal 15947 | . . . 38 . . 553 738 2182 49 759 1988 2468 6164 1008 Explosive . | . . . . . . . . . . . . . . . Electromagnetic 18654 | . . 109 1787 77 . 1087 2506 364 735 927 2817 2082 5223 940 Impact . | . . . . . . . . . . . . . . . Slashing . | . . . . . . . . . . . . . . . Piercing . | . . . . . . . . . . . . . . . Highest Corruption 7 | . . . . . . . 3 3 3 3 7 4 2 4 Average Corruption 2 | . . . . . . . 1 3 3 2 1 3 1 2 Corruption Purged 7 | . . . . . . . . . . 3 1 . 3 . Effects 80 | . . . . . . . 2 20 6 10 5 23 8 6 Message Errors 21 | . . . . . . . . 6 2 2 2 6 2 1 Matter Fused 10 | . . . . . . . . 3 2 2 . 3 . . Heat Flow Errors 5 | . . . . . . . . . . 2 . 2 . 1 Energy Discharges 7 | . . . . . . . 1 3 . 1 . 1 . 1 Data Loss (minor) 16 | . . . . . . . 1 . 1 2 2 8 1 1 Targeting Errors 16 | . . . . . . . . 7 1 . 1 2 4 1 Weapon Failures 5 | . . . . . . . . 1 . 1 . 1 1 1 Overload Shots 1 | . . . . . . . 1 . . . . . . . Overflow Damage 601 | . . . 104 . . 79 125 7 . 29 79 115 63 . Projectiles 375 | . . . 104 . . 73 12 7 . 29 72 24 54 . Explosions 226 | . . . . . . 6 113 . . . 7 91 9 . Melee . | . . . . . . . . . . . . . . . Knockbacks . | . . . . . . . . . . . . . . . Impact . | . . . . . . . . . . . . . . . Kinetic . | . . . . . . . . . . . . . . . Secondary . | . . . . . . . . . . . . . . . Self-Inflicted Damage 1180 | . . . . . . . 173 71 . 25 485 221 205 . Shots 19 | . . . . . . . 3 1 . 1 7 3 4 . Rammed 1 | . . . . . . . . . . . . 1 . . Targets Rammed 1 | . . . . . . . . . . . . 1 . . Kicked . | . . . . . . . . . . . . . . . Crushed . | . . . . . . . . . . . . . . . Highest Temperature 394 | . 6 81 311 204 . 231 294 170 146 220 258 270 394 342 Average Temperature 89 | . 2 20 76 99 . 78 94 17 56 49 99 100 115 110 Received Heat Transfer 1135 | . 18 237 126 . . 108 166 36 12 4 106 158 104 60 Effects 9 | . . . 3 . . 1 1 . . . 1 . 2 1 Energy Bleed 4 | . . . . . . 1 1 . . . 1 . 1 . Interference 3 | . . . 3 . . . . . . . . . . . Matter Decay 1 | . . . . . . . . . . . . . . 1 Damage (minor) 1 | . . . . . . . . . . . . . 1 . Siege Activations . | . . . . . . . . . . . . . . . Robots Corrupted 17 | . . . . . . . 5 . 1 . . 3 7 1 Combat Hostiles 16 | . . . . . . . 5 . 1 . . 3 6 1 Parts Fried 177 | . . . 13 . . 1 24 1 5 21 12 28 59 13 Impact Corruptions . | . . . . . . . . . . . . . . . Robots Melted . | . . . . . . . . . . . . . . . Combat Hostiles . | . . . . . . . . . . . . . . . Parts Melted 46 | . . . . . . . 1 14 . . 3 8 20 . Heat Transferred 19721 | . . . 50 . . 350 750 3269 74 1014 2908 2696 7419 1191 Parts Sabotaged 11 | . . . . . . . . . . . . . . 11 Parts Stolen . | . . . . . . . . . . . . . . . Parts Stripped . | . . . . . . . . . . . . . . . Power Chain Reactions 29 | . . . 1 . . 5 7 1 . 1 5 3 5 1 Missiles Intercepted . | . . . . . . . . . . . . . . . Alert | -11 -10 -10 -9 -9 -7 -6 -6 -6 -6 -6 -6 -5 -4 -4 ------- Run | Scr Mat Min Mat Min Zio Pro Fac Ext Cet Arc Hub Fac Fac Arm Peak Influence 2824 | . 99 206 630 229 . . 934 873 1021 708 1770 1942 2824 1727 Average Influence 848 | . 45 159 389 229 . . 432 561 581 532 1063 1285 1492 1554 Maximum Alert Level 5 | . . 1 2 1 . . 3 3 3 3 5 5 5 5 Low Security (%) 11 | 100 100 66 15 . . . 27 . . . 3 . . . Level 1 14 | . . 33 29 100 . . 27 2 40 26 8 . . . Level 2 20 | . . . 55 . . . 9 79 37 47 6 . . . Level 3 25 | . . . . . . . 35 17 21 26 26 47 33 . Level 4 14 | . . . . . . . . . . . 48 25 27 53 Level 5 10 | . . . . . . . . . . . 6 . 38 46 High Security 2 | . . . . . . . . . . . . 26 . . Max Security . | . . . . . . . . . . . . . . . Squads Dispatched 68 | . 3 1 3 . . . 12 5 1 . 11 16 15 1 Investigation 14 | . 2 1 1 . . . 4 1 1 . 3 . 1 . Extermination 7 | . . . . . . . 2 . . . 2 . 2 1 Reinforcement 20 | . 1 . 2 . . . 4 2 . . 2 4 5 . Assault 21 | . . . . . . . 2 2 . . 1 9 7 . Garrison 6 | . . . . . . . . . . . 3 3 . . Intercept . | . . . . . . . . . . . . . . . Construction Impeded 3 | . . . . . . . 1 . . . . 1 1 . Haulers Reinforced 6 | . . . . . . . 1 . . . 1 2 2 . Stealth | -11 -10 -10 -9 -9 -7 -6 -6 -6 -6 -6 -6 -5 -4 -4 --------- Run | Scr Mat Min Mat Min Zio Pro Fac Ext Cet Arc Hub Fac Fac Arm Distress Signals 22 | . . . 4 . . . 3 3 2 . 2 4 3 1 Communications Jammed . | . . . . . . . . . . . . . . . Distress Signals . | . . . . . . . . . . . . . . . Times Spotted 470 | . 7 10 43 1 . 28 47 48 19 12 44 79 100 32 Peak Tracking Total 30 | . 3 3 13 1 . 7 7 11 8 1 7 30 8 11 Tactical Retreats 50 | . . 1 4 . . 4 9 2 . . 5 13 10 2 Traps | -11 -10 -10 -9 -9 -7 -6 -6 -6 -6 -6 -6 -5 -4 -4 ------- Run | Scr Mat Min Mat Min Zio Pro Fac Ext Cet Arc Hub Fac Fac Arm Traps Triggered 14 | . . . . . . . 3 5 . . 2 3 1 . Indirectly . | . . . . . . . . . . . . . . . Trap Hack Attempts . | . . . . . . . . . . . . . . . Triggered . | . . . . . . . . . . . . . . . Disarmed . | . . . . . . . . . . . . . . . Reprogrammed 4 | . . . . . . . . . . . . . 4 . Reused . | . . . . . . . . . . . . . . . Traps Extracted . | . . . . . . . . . . . . . . . Installed . | . . . . . . . . . . . . . . . Triggered 2 | . . . . . . . . . . . . . 2 . Machines | -11 -10 -10 -9 -9 -7 -6 -6 -6 -6 -6 -6 -5 -4 -4 ---------- Run | Scr Mat Min Mat Min Zio Pro Fac Ext Cet Arc Hub Fac Fac Arm Machines Disabled 64 | . . . 1 . . . 3 3 . 2 29 14 8 4 Max in Single Turn 12 | . . . 1 . . . 3 3 . . 12 4 2 1 Garrison Access 7 | . . . . . . . 1 . . . 2 . 4 . Network Hub 4 | . . . . . . . . . . . 4 . . . Energy Cycler 1 | . . . . . . . . 1 . . . . . . Machines Sabotaged . | . . . . . . . . . . . . . . . Garrisons Compromised . | . . . . . . . . . . . . . . . Overloaded Fab Kills . | . . . . . . . . . . . . . . . Fab Network Shutdowns 2 | . . . . . . . 1 . . . . . 1 . Hacking | -11 -10 -10 -9 -9 -7 -6 -6 -6 -6 -6 -6 -5 -4 -4 --------- Run | Scr Mat Min Mat Min Zio Pro Fac Ext Cet Arc Hub Fac Fac Arm Machines Accessed 98 | . 5 3 5 . 1 . 27 7 4 . 13 7 23 3 Terminals 73 | . 5 1 5 . . . 16 7 4 . 11 6 15 3 Fabricators 6 | . . . . . . . 4 . . . . . 2 . Repair Stations 1 | . . . . . . . 1 . . . . . . . Recycling Units 3 | . . . . . . . . . . . . 1 2 . Scanalyzers 4 | . . . . . . . 4 . . . . . . . Garrison Access 8 | . . . . . . . 2 . . . 2 . 4 . Total Hacks 487 | . 22 7 17 . 3 . 99 24 9 . 69 60 153 24 Successful 249 | . 11 4 7 . 3 . 66 15 3 . 37 21 76 6 Failed 238 | . 11 3 10 . . . 33 9 6 . 32 39 77 18 Catastrophic 46 | . 1 . . . . . 4 3 1 . 8 11 14 4 Database Lockouts . | . . . . . . . . . . . . . . . Manual 272 | . 19 5 13 . 1 . 37 21 6 1 32 41 84 12 Terminals 388 | . 22 5 17 . . . 56 24 9 . 64 48 119 24 Fabricators 30 | . . . . . . . 16 . . . . . 14 . Repair Stations 2 | . . . . . . . 2 . . . . . . . Recycling Units 25 | . . . . . . . . . . . . 12 13 . Scanalyzers 19 | . . . . . . . 19 . . . . . . . Garrison Access 18 | . . . . . . . 6 . . . 5 . 7 . Terminal Hacks 121 | . 4 3 4 . 3 . 21 10 . . 26 9 37 4 Record 1 | . . . . . . . . . . . . 1 . . Part Schematic 7 | . . . . . 3 . 1 . . . 1 . 2 . Robot Schematic 3 | . . . . . . . 1 . . . 1 . 1 . Robot Analysis 7 | . . . . . . . 2 . . . 1 2 2 . Prototype ID Bank 14 | . . . 2 . . . 1 . . . 1 . 10 . Open Door 4 | . . 2 . . . . . 2 . . . . . . Level Access Points 4 | . . . . . . . 1 . . . 1 . 1 1 Branch Access Points 8 | . 1 1 1 . . . . 1 . . 2 . 1 1 Emergency Access Points 3 | . . . . . . . . . . . 3 . . . Machine Index 3 | . . . . . . . 1 . . . 1 1 . . Terminal Index 4 | . . . . . . . 1 . . . 1 1 1 . Scanalyzer Index 1 | . . . . . . . . . . . . . 1 . Alert Level 19 | . 1 . . . . . 2 4 . . 4 1 6 1 Unreport Threat 14 | . . . . . . . 2 3 . . 4 1 4 . Locate Traps 1 | . . . . . . . . . . . . 1 . . Reprogram Traps 1 | . . . . . . . . . . . . . 1 . Security Status 1 | . . . . . . . . . . . 1 . . . Patrol Status 1 | . . . . . . . . . . . . . 1 . Recall Investigation 1 | . 1 . . . . . . . . . . . . . Recall Extermination 2 | . . . . . . . 2 . . . . . . . Recall Reinforcements 3 | . . . . . . . 1 . . . 1 1 . . Recall Assault 2 | . . . . . . . 1 . . . . . 1 . Hauler Manifests 5 | . 1 . 1 . . . 1 . . . 1 . 1 . Registered Components 3 | . . . . . . . 1 . . . . . 1 1 Registered Prototypes 2 | . . . . . . . 1 . . . . . 1 . Zone Layout 7 | . . . . . . . 2 . . . 3 . 2 . Fabricator Hacks 14 | . . . . . . . 9 . . . . . 5 . Network Status 1 | . . . . . . . 1 . . . . . . . Load Schematic 6 | . . . . . . . 4 . . . . . 2 . Build 7 | . . . . . . . 4 . . . . . 3 . Repair Station Hacks 2 | . . . . . . . 2 . . . . . . . Scan Component 1 | . . . . . . . 1 . . . . . . . Repair 1 | . . . . . . . 1 . . . . . . . Recycling Unit Hacks 5 | . . . . . . . . . . . . 2 3 . Report Inventory 3 | . . . . . . . . . . . . 1 2 . Retrieve Components 2 | . . . . . . . . . . . . 1 1 . Scanalyzer 18 | . . . . . . . 18 . . . . . . . Insert Component 7 | . . . . . . . 7 . . . . . . . Analyze 11 | . . . . . . . 11 . . . . . . . Garrison Access Hacks 6 | . . . . . . . 1 . . . 1 . 4 . Seal Access 6 | . . . . . . . 1 . . . 1 . 4 . Unauthorized Hacks 217 | . 15 3 11 . . . 34 12 8 . 27 34 65 8 Terminals 63 | . 7 1 3 . . . 9 5 3 . 10 7 16 2 Track 15 | . 3 . 1 . . . 2 . . . 4 1 4 . Assimilate 12 | . 1 1 . . . . 3 . . . . 2 5 . Botnet 26 | . 3 . 2 . . . 3 4 3 . 3 3 3 2 Disrupt 6 | . . . . . . . . . . . 3 . 3 . Operators 4 | . . . . . . . 1 1 . . . 1 1 . Fabricators 11 | . . . . . . . 6 . . . . . 5 . Report 2 | . . . . . . . 1 . . . . . 1 . Prioritize 5 | . . . . . . . 3 . . . . . 2 . Siphon 4 | . . . . . . . 2 . . . . . 2 . Repair Stations . | . . . . . . . . . . . . . . . Recycling Units 8 | . . . . . . . . . . . . 3 5 . Monitor 3 | . . . . . . . . . . . . 1 2 . Reject 3 | . . . . . . . . . . . . 1 2 . Mask 2 | . . . . . . . . . . . . 1 1 . Scanalyzers . | . . . . . . . . . . . . . . . Garrison Access . | . . . . . . . . . . . . . . . Data Cores Recovered 1 | . . . . . . . 1 . . . . . . . Used . | . . . . . . . . . . . . . . . Hacking Detections 78 | . 5 1 5 . . . 23 7 3 . 12 6 13 3 Full Trace Events 12 | . 3 . 1 . . . 4 1 1 . 1 . 1 . Feedback Events 1 | . . . . . . . . . . . . . 1 . Corruption 1 | . . . . . . . . . . . . . 1 . Feedback Blocked . | . . . . . . . . . . . . . . . Robot Schematics Acquired 3 | . . . . . . . 1 . . . 1 . 1 . Robots Built . | . . . . . . . . . . . . . . . Matter . | . . . . . . . . . . . . . . . Time . | . . . . . . . . . . . . . . . Total Robot Build Rating . | . . . . . . . . . . . . . . . Part Schematics Acquired 13 | . . . . . 3 . 7 . . . 1 . 2 . Parts Built 7 | . . . . . . . 3 . . . . . 4 . Matter 1539 | . . . . . . . 855 . . . . . 684 . Time 305 | . . . . . . . 152 . . . . . 153 . Total Part Build Rating 45 | . . . . . . . 15 . . . . . 30 . Parts Repaired 1 | . . . . . . . 1 . . . . . . . Time 35 | . . . . . . . 35 . . . . . . . Parts Recycled . | . . . . . . . . . . . . . . . Recycled Matter . | . . . . . . . . . . . . . . . Retrieved Matter . | . . . . . . . . . . . . . . . Retrieved Components 10 | . . . . . . . . . . . . 3 7 . Parts Scanalyzed 6 | . . . . . . . 6 . . . . . . . Part Schematics Acquired 6 | . . . . . . . 6 . . . . . . . Parts Damaged 2 | . . . . . . . 2 . . . . . . . Bothacking | -11 -10 -10 -9 -9 -7 -6 -6 -6 -6 -6 -6 -5 -4 -4 ------------ Run | Scr Mat Min Mat Min Zio Pro Fac Ext Cet Arc Hub Fac Fac Arm Used RIF Installer . | . . . . . . . . . . . . . . . Robots Hacked . | . . . . . . . . . . . . . . . Non-combat . | . . . . . . . . . . . . . . . Combat . | . . . . . . . . . . . . . . . Robot Hacks Applied . | . . . . . . . . . . . . . . . Relay Couplers Released 1 | . . . . . . . . . . . 1 . . . Machine Destruction 1 | . . . . . . . . . . . 1 . . . Robots Rewired 10 | . . . . . . . . 10 . . . . . . Allies Hacked . | . . . . . . . . . . . . . . . Hacks Repelled . | . . . . . . . . . . . . . . . Allies | -11 -10 -10 -9 -9 -7 -6 -6 -6 -6 -6 -6 -5 -4 -4 -------- Run | Scr Mat Min Mat Min Zio Pro Fac Ext Cet Arc Hub Fac Fac Arm Total Allies 27 | . 1 . . . . . 2 13 5 . . 2 4 . Largest Group 14 | . 1 . . . . . 1 11 14 13 10 1 2 . Highest-Rated Group 852 | . 10 . . . . . 26 467 852 815 606 26 52 . Highest-Rated Ally 156 | . 10 . . . . . 26 156 156 140 94 26 26 . Total Orders 29 | . 1 . . . . . . . . . 10 . 15 3 GOTO 15 | . 1 . . . . . . . . . 6 . 8 . FOLLOW 9 | . . . . . . . . . . . 2 . 7 . EXPLORE 5 | . . . . . . . . . . . 2 . . 3 Ally Attacks 193 | . . . . . . . . 26 79 18 70 . . . Total Damage 5549 | . . . . . . . . 526 2084 516 2423 . . . Kills 36 | . . . . . . . . 3 13 2 18 . . . Allies Corrupted 3 | . . . . . . . . . . . 3 . . . Allies Melted . | . . . . . . . . . . . . . . . Intel | -11 -10 -10 -9 -9 -7 -6 -6 -6 -6 -6 -6 -5 -4 -4 ------- Run | Scr Mat Min Mat Min Zio Pro Fac Ext Cet Arc Hub Fac Fac Arm Robot Analysis Total 7 | . . . . . . . 2 . . . 1 2 2 . Derelict Logs Recovered 5 | . . 1 . 2 1 1 . . . . . . . . Drone Launches 6 | . . . . . . . . . . . 2 . . 4 Drone Recoveries . | . . . . . . . . . . . . . . . Exploration | -11 -10 -10 -9 -9 -7 -6 -6 -6 -6 -6 -6 -5 -4 -4 ------------- Run | Scr Mat Min Mat Min Zio Pro Fac Ext Cet Arc Hub Fac Fac Arm Turns Passed 11789 | 19 201 372 881 122 345 1010 1885 941 324 1082 904 1028 2229 446 Spaces Moved 17882 | 38 342 670 1170 310 948 1093 3679 1344 470 167 1540 2133 3257 721 Core 159 | 38 121 . . . . . . . . . . . . . Treads . | . . . . . . . . . . . . . . . Legs . | . . . . . . . . . . . . . . . Wheels . | . . . . . . . . . . . . . . . Hover . | . . . . . . . . . . . . . . . Flight 17723 | . 221 670 1170 310 948 1093 3679 1344 470 167 1540 2133 3257 721 Fastest Speed 26 | 50 37 37 34 34 34 34 26 32 32 32 32 26 26 26 Average Speed 33 | 50 41 39 36 34 34 34 33 32 32 32 32 31 31 32 Slowest Speed 117 | 50 50 117 37 34 34 34 105 32 112 32 32 32 32 115 Overloaded Moves 251 | . . . . . . . 34 . . . . 127 47 43 Propulsion Burnouts . | . . . . . . . . . . . . . . . Robots Hopped 225 | . . 8 30 . . 1 34 21 . 2 43 23 60 3 Cave-ins Triggered . | . . . . . . . . . . . . . . . Exploration Rate (%) 73 | 3 58 98 90 63 79 93 77 96 73 85 99 60 73 49 Regions Visited 14 Branch Regions 9 Pre-discovered Areas 4 | . . . . 1 2 1 . . . . . . . . Known Exits Taken 12 | . 1 . 1 1 1 1 1 1 1 1 1 1 1 . Unknown Exits Taken 2 | 1 . 1 . . . . . . . . . . . . Scrap Searched 7 | . . 1 . 1 1 4 . . . . . . . . Spaces Dug 9 | . . . . . . . 1 . . . 1 1 6 . Terrain Destroyed 966 | . . . . . . 16 54 26 . 3 678 92 92 5 Melee 2 | . . . . . . . . . . . 1 . 1 . Projectile 43 | . . . . . . . 1 . . . . 19 23 . AOE 921 | . . . . . . 16 53 26 . 3 677 73 68 5 Actions | -11 -10 -10 -9 -9 -7 -6 -6 -6 -6 -6 -6 -5 -4 -4 --------- Run | Scr Mat Min Mat Min Zio Pro Fac Ext Cet Arc Hub Fac Fac Arm Total 22266 | 37 384 736 1489 317 965 1646 4176 1697 607 1150 1770 2337 4089 866 Wait 3074 | . 21 26 252 . 1 455 327 114 94 956 144 112 511 61 Move 17444 | 37 341 653 1113 309 947 1090 3613 1301 469 162 1460 2088 3145 716 Hop 199 | . . 8 26 . . 1 31 20 . 2 36 22 51 2 Pick Up 36 | . . . . . . . 8 3 1 1 6 3 11 3 Fast Attach 124 | . 4 4 8 1 6 1 25 . 9 2 6 10 31 17 Attach 16 | . . . . . . . 4 1 1 2 3 . 4 1 Detach 10 | . . . . . . . 7 . . 1 1 . 1 . Swap 37 | . . 1 2 . . 2 6 8 . 1 1 1 13 2 Drop 130 | . . 3 8 . 6 . 29 2 7 2 8 12 42 11 Fire 632 | . 16 30 59 4 . 41 65 67 16 17 62 52 166 37 Melee 8 | . . . . . 5 . . . . . 1 . 2 . Ram . | . . . . . . . . . . . . . . . Kick . | . . . . . . . . . . . . . . . Crush . | . . . . . . . . . . . . . . . Escape Stasis 105 | . . . . . . . 18 74 . . . . 13 . Rewire 86 | . . . . . . . . 80 . . . . . 6 Trap . | . . . . . . . . . . . . . . . Miscellaneous 365 | . 2 11 21 3 . 56 43 27 10 4 42 37 99 10 Route ------- -11/Scrapyard -10/Materials (discovered 3 exits: *Mat / *Min x2) -10/Mines (discovered 2 exits: *Mat x2) -9/Materials (discovered 5 exits: *Mat x3 / *Min x2) -9/Mines (discovered 2 exits: *Exi / *Zio) -7/Zion -6/Proximity Caves -6/Factory (discovered 8 exits: Fac x4 / *Low x2 / *Ext x2) -6/Extension (discovered 3 exits: *Fac x2 / *Cet) -6/Cetus (discovered 2 exits: *Fac / *Arc) -6/Archives (discovered 3 exits: *Fac / *Hub x2) -6/Hub_04(d) (discovered 4 exits: *Fac x4) -5/Factory (discovered 2 exits: *Fac x2) -4/Factory (discovered 7 exits: *Res x4 / *Upp x2 / *Arm) -4/Armory (discovered 2 exits: Res x2) History --------- Turn | Location | Event 3 | -11/Scrapyard | Discovered new exit (range 15) 20 | -11/Scrapyard | Entered Materials 61 | -10/Materials | Discovered new exit (range 16) 62 | -10/Materials | Identified exit to Mines 120 | -10/Materials | Upgraded with Propulsion slot (x1) 120 | -10/Materials | Upgraded with Utility slot (x1) 120 | -10/Materials | Upgraded with Weapon slot (x1) 200 | -10/Materials | Discovered new exit (range 13) 221 | -10/Materials | Entered Mines 267 | -10/Mines | Learned location of 1 exit from Materials 326 | -10/Mines | Core integrity fell below 50% 329 | -10/Mines | Build established: Mutant 357 | -10/Mines | Discovered new exit (range 8) 397 | -10/Mines | Found a damaged Exp. Sensor Array with a note attached 400 | -10/Mines | Found Prototype Device 400 | -10/Mines | Identified Exp. Sensor Array 425 | -10/Mines | Met a Derelict shopkeep closing up shop 453 | -10/Mines | Reached level 2 495 | -10/Mines | A weapon hastily lodged in a ceiling crevice suddenly fell to the ground 503 | -10/Mines | Discovered new exit (range 10) 535 | -10/Mines | Met a Derelict who couldn't figure out how to use a Trap Extractor 593 | -10/Mines | Entered Materials 594 | -9/Materials | Identified exit to Materials 595 | -9/Materials | Reached level 3 625 | -9/Materials | Identified exit to Mines 652 | -9/Materials | Core integrity fell below 50% 711 | -9/Materials | Core integrity fell below 20% 753 | -9/Materials | Discovered exit to Materials (range 16) 1020 | -9/Materials | Reached level 4 1102 | -9/Materials | Upgraded with Utility slot (x1) 1121 | -9/Materials | Discovered exit to Materials (range 12) 1238 | -9/Materials | Build established: Hacker-Mutant 1307 | -9/Materials | Reached level 5 1474 | -9/Materials | Entered Mines 1474 | -9/Mines | Upgraded with Utility slot (x1) 1484 | -9/Mines | Assembled infested the area 1489 | -9/Mines | Assisted by a Guerilla fighting off Assembled 1513 | -9/Mines | A Derelict revealed a hidden shortcut to a safe place 1516 | -9/Mines | Learned Materials garrison access intel 1521 | -9/Mines | Learned location of Zion (-7) 1555 | -9/Mines | Identified exit to Zion 1585 | -9/Mines | Deemed a non-threat by the Exiles lab entrance 1586 | -9/Mines | Discovered new exit (range 5) 1587 | -9/Mines | Identified exit to Exiles 1596 | -9/Mines | Entered Zion 1617 | -7/Zion | Discovered new exit (range 11) 1621 | -7/Zion | Identified exit to Proximity Caves 1689 | -7/Zion | Found Prototype Launcher 1689 | -7/Zion | Identified Gui. Missile Launcher 1726 | -7/Zion | Learned Factory emergency access door positions 1777 | -7/Zion | Learned Factory emergency access door positions 1797 | -7/Zion | Learned location of Armory (-4) 1798 | -7/Zion | Learned location of Warlord (-5) 1941 | -7/Zion | Entered Proximity Caves 1943 | -6/Proximity Caves | Reached level 6 1949 | -6/Proximity Caves | Upgraded with Utility slot (x1) 2148 | -6/Proximity Caves | Reached level 7 2710 | -6/Proximity Caves | Attracted the attention of an 0b10 base 2897 | -6/Proximity Caves | Reached level 8 2933 | -6/Proximity Caves | Upgraded with Utility slot (x1) 2935 | -6/Proximity Caves | Upgraded with Utility slot (x1) 2944 | -6/Proximity Caves | Discovered new exit (range 7) 2946 | -6/Proximity Caves | Identified exit to Factory 2951 | -6/Proximity Caves | Entered Factory 2953 | -6/Factory | Reached level 9 3045 | -6/Factory | Discovered new exit (range 9) 3059 | -6/Factory | Identified exit to Extension 3301 | -6/Factory | First assault squad dispatched 3546 | -6/Factory | Identified exit to Factory 3557 | -6/Factory | Discovered new exit (range 5) 3558 | -6/Factory | Identified exit to Lower Caves 3693 | -6/Factory | Fabricated Cld. Cesium-ion Thruster? 3749 | -6/Factory | Fabricated Cld. Cesium-ion Thruster (x1) 3775 | -6/Factory | Spotted B-75 Beast 3841 | -6/Factory | Reached level 10 4057 | -6/Factory | Build established: Hacker-Sprinter 4099 | -6/Factory | Reached level 11 4164 | -6/Factory | Local fabrication network quarantined 4208 | -6/Factory | Fabricated Cld. Plasma Cannon (x1) 4281 | -6/Factory | Discovered exit to Extension (range 8) 4479 | -6/Factory | Discovered exit to Lower Caves (range 12) 4726 | -6/Factory | Repaired Broken Force Rifle? 4836 | -6/Factory | Entered Extension 4838 | -6/Extension | Reached level 12 4839 | -6/Extension | Upgraded with Utility slot (x1) 4856 | -6/Extension | Rescued a captive Derelict 4878 | -6/Extension | Identified exit to Cetus 4879 | -6/Extension | Rescued a captive Derelict 4910 | -6/Extension | Spotted B-75 Beast 5136 | -6/Extension | Reached level 13 5186 | -6/Extension | First assault squad dispatched 5285 | -6/Extension | Warlord forces began an assault 5311 | -6/Extension | Disrupted transfer network 5334 | -6/Extension | Energy Cycler disabled 5335 | -6/Extension | Rescued a captive Derelict 5338 | -6/Extension | Rescued a captive Derelict 5340 | -6/Extension | Rescued a captive Derelict 5380 | -6/Extension | Discovered exit to Factory (range 15) 5407 | -6/Extension | Rescued A7 5435 | -6/Extension | Destroyed 8 combat bots 5464 | -6/Extension | Reached level 14 5675 | -6/Extension | Discovered exit to Factory (range 10) 5777 | -6/Extension | Entered Cetus 5777 | -6/Cetus | Accompanied by 11 allies 5779 | -6/Cetus | Reached level 15 5779 | -6/Cetus | Upgraded with Utility slot (x2) 5782 | -6/Cetus | Acquired a Cetus Manufacturing Module code from A7 5782 | -6/Cetus | Spotted Cetus Guard 5783 | -6/Cetus | Spotted Cetus Guard 5795 | -6/Cetus | Destroyed Cetus Guard 5795 | -6/Cetus | Spotted Cetus Guard 5797 | -6/Cetus | Destroyed Cetus Guard 5797 | -6/Cetus | Spotted Cetus Guard 5804 | -6/Cetus | Allies destroyed Cetus Guard 5806 | -6/Cetus | Allies destroyed Cetus Guard 5839 | -6/Cetus | Started Cetus Manufacturing Module 5840 | -6/Cetus | Build established: Commander-Sprinter 5858 | -6/Cetus | Discovered exit to Factory (range 15) 5864 | -6/Cetus | Manufactured an Enhanced Grunt 5881 | -6/Cetus | Discovered new exit (range 15) 5888 | -6/Cetus | Spotted Cetus Guard 5889 | -6/Cetus | Manufactured an Enhanced Grunt 5889 | -6/Cetus | Spotted Cetus Guard 5914 | -6/Cetus | Manufactured an Enhanced Grunt 5914 | -6/Cetus | Reached level 16 5919 | -6/Cetus | Upgraded with Power slot (x1) 5919 | -6/Cetus | Upgraded with Weapon slot (x1) 5934 | -6/Cetus | Spotted Cetus Guard 5934 | -6/Cetus | Spotted Cetus Guard 5935 | -6/Cetus | Allies destroyed Cetus Guard 5939 | -6/Cetus | Manufactured an Enhanced Grunt 5940 | -6/Cetus | Allies destroyed Cetus Guard 5943 | -6/Cetus | Allies destroyed Cetus Guard 5964 | -6/Cetus | Manufactured an Enhanced Grunt 5965 | -6/Cetus | Reached level 17 6090 | -6/Cetus | Identified exit to Archives 6101 | -6/Cetus | Entered Archives 6101 | -6/Archives | Accompanied by 13 allies 6103 | -6/Archives | Reached level 18 6103 | -6/Archives | Upgraded with Weapon slot (x1) 6139 | -6/Archives | Unable to access archive contents 6160 | -6/Archives | Discovered exit to Factory (range 15) 6210 | -6/Archives | Discovered new exit (range 16) 6232 | -6/Archives | Discovered new exit (range 13) 7179 | -6/Archives | Identified exit to Hub_04(d) 7183 | -6/Archives | Entered Hub_04(d) 7183 | -6/Hub_04(d) | Accompanied by 10 allies 7200 | -6/Hub_04(d) | Discovered exit to Factory (range 11) 7218 | -6/Hub_04(d) | Reached level 19 7422 | -6/Hub_04(d) | Garrison activated, responded to threat 7475 | -6/Hub_04(d) | Garrison activated, responded to threat 7502 | -6/Hub_04(d) | Reached level 20 7613 | -6/Hub_04(d) | Garrison activated, responded to threat 7617 | -6/Hub_04(d) | Found Prototype Processor 7617 | -6/Hub_04(d) | Identified Exp. Signal Interpreter 7621 | -6/Hub_04(d) | Found Exp. Signal Interpreter 7814 | -6/Hub_04(d) | Build established: Hacker-Sprinter 7976 | -6/Hub_04(d) | Network Hub disabled 7994 | -6/Hub_04(d) | Network Hub disabled 8009 | -6/Hub_04(d) | Network Hub disabled 8029 | -6/Hub_04(d) | Network Hub disabled 8029 | -6/Hub_04(d) | Reached level 21 8057 | -6/Hub_04(d) | Spotted Lightning 8074 | -6/Hub_04(d) | Spotted Lightning 8082 | -6/Hub_04(d) | Spotted Lightning 8084 | -6/Hub_04(d) | Core integrity fell below 50% 8087 | -6/Hub_04(d) | Entered Factory 8088 | -5/Factory | Core integrity fell below 50% 8100 | -5/Factory | Upgraded with Utility slot (x1) 8277 | -5/Factory | Core integrity fell below 20% 8458 | -5/Factory | Discovered new exit (range 7) 8546 | -5/Factory | Identified exit to Factory 8569 | -5/Factory | Reached level 22 8635 | -5/Factory | Garrison activated, responded to threat 8687 | -5/Factory | First assault squad dispatched 8838 | -5/Factory | High security lockdown imminent 8918 | -5/Factory | High security lockdown engaged 8998 | -5/Factory | Spotted B-75 Beast 9111 | -5/Factory | Discovered exit to Factory (range 12) 9115 | -5/Factory | Entered another Factory area 9116 | -4/Factory | Core integrity fell below 50% 9117 | -4/Factory | Reached level 23 9120 | -4/Factory | Upgraded with Utility slot (x1) 9128 | -4/Factory | Spotted B-86 Titan 9255 | -4/Factory | Discovered new exit (range 11) 9258 | -4/Factory | Identified exit to Upper Caves 9365 | -4/Factory | First assault squad dispatched 9423 | -4/Factory | Reached level 24 9457 | -4/Factory | Discovered exit to Upper Caves (range 14) 9520 | -4/Factory | Discovered new exit (range 5) 9521 | -4/Factory | Identified exit to Research 9695 | -4/Factory | Found Prototype Processor 9695 | -4/Factory | Identified Exp. Melee Analysis Suite 9843 | -4/Factory | Identified exit to Armory 10022 | -4/Factory | Discovered exit to Research (range 6) 10105 | -4/Factory | Discovered exit to Research (range 15) 10113 | -4/Factory | Reached level 25 10473 | -4/Factory | Destroyed 7 combat bots 10573 | -4/Factory | Spotted B-86 Titan 10627 | -4/Factory | Fabricated Enh. Force Rifle (x1) 10671 | -4/Factory | Fabricated Enh. Force Rifle (x1) 10726 | -4/Factory | Reached level 26 11010 | -4/Factory | Local fabrication network quarantined 11059 | -4/Factory | Fabricated Enh. Quantum Rifle? 11123 | -4/Factory | Upgraded with Utility slot (x1) 11344 | -4/Factory | Entered Armory 11759 | -4/Armory | Core integrity fell below 20% 11790 | -4/Armory | Destroyed by G-67 Veteran with Plasma Rifle Last Messages --------------- 11750_ Acquired Adv. Coolant Injector. 11752_ Acquired Cld. Ion Engine. 11754_ Acquired Enh. Force Rifle. 11755_ System corrupted: Component data lost. 11756_ Acquired Hvy. Tesla Rifle. 11758_ Acquired Energy Filter. 11766_ Dropped Energy Well. 11767_ Extracted 129 energy. 11768_ Extracted 16 energy. 11768_ P-70 Sage suffers critical hit. 11768_ P-70 Sage destroyed. 11769_ Extracted 84 energy. 11769_ Slug penetrates Wall. 11772_ Acquired Energy Well. 11772_ Slug penetrates Wall. 11772_ Penetrated by Slug. 11779_ L-61 Swordsman destroyed. 11782_ Fabricator disabled. 11786_ Component Storage disabled. 11787_ Slug penetrates Wall. Map ----- +----------------------------------------------------+ | ?????????????????????????????????????????????????# | | ?????????????????????????????????????????????????? | | ?????????????????????????????????????????????????? | | ??????????????????????????????????????##+######### | | ????????????????????################### | | ????????????????????# + | | ????????????????????# """ # """ """ | | ????????????????????# # """ """ | | ????????????????????# # """ """ | | ????????????????????# # """ """ | | ????????????????????# """ # """ """ | | ????????????????????# + """ """ | | ????????????#?????????#####+###/####### | | ????????????# h???????# #??# | | ????????????# ????????# / #??# ######### | | ????????????? ???????# ! %! h #??# #???????? | | ?????????????? h?????# // %h% #??# #???????? | | ??????????????? ??????# ! #??# #???????? | | ???????????????# ?????#######/######??# #???????? | | ???????????????# ########### #???????# #???????? | | ???????????????# #???????# #???????? | | ???????????????# #???????+ #???????? | | ???????????????# ! #???????# #???????? | | ???????????????+ !%=d #???????# #???????? | | ??????Y????????# ###g##### #???????# #???????? | | ???????????????# # [g @## #???????# #???????? | | ?????????????? ?# """h## #???????? #???????? | | ????????????# ?#g!"""g## #???????? #???????? | | ????????????# ??#!%""" ## #???????? #???????? | | ??????????? ??#gh""" ## #???????? ???????? | | ??????????+### ???# "" ## #???????Y Y???????? | | ?????????????# ???# p ## #????????++#???????? | | ?????????????# ????# l #? #??????????????????? | | ?????????????# ????#" #? #??????